bitfinex-derivatives/quotes_BNBF0:USTF0_20251002
["timestamp","ask_amount","ask_price","bid_price","bid_amount"]
[1759428880761,0.16321668,1067.1,1063.8,0.63019997]
[1759428881161,0.9841925,1067.1,1063.8,0.63019997]
[1759428881565,0.82097582,1066.9,1063.8,0.63019997]
[1759428881762,0.82097582,1066.9,1063.7,0.63019997]
[1759428882465,0.82097582,1066.9,1063.7,0.61452109]
[1759428882765,0.82097582,1066.8,1063.8,1.361574]
[1759428884166,0.82097582,1066.8,1063.8,1.97609509]
[1759428885763,0.82097582,1066.9,1063.8,1.97609509]
[1759428886267,0.82097582,1066.8,1063.8,1.97609509]
[1759428887367,0.82097582,1066.8,1063.9,0.61452109]
[1759428888366,0.82097582,1066.8,1064.0,0.61452109]
[1759428888367,0.82097582,1066.6,1064.0,0.61452109]
[1759428888867,0.82097582,1066.5,1064.0,0.61452109]
[1759428889367,0.82097582,1066.4,1064.0,0.61452109]
[1759428889570,0.82097582,1066.4,1063.9,0.61452109]
[1759428890166,0.82097582,1066.5,1063.9,0.61452109]
[1759428890370,0.82097582,1066.5,1064.0,0.61452109]
[1759428892371,0.82097582,1066.1,1064.0,0.61452109]
[1759428892571,0.82097582,1066.2,1064.0,0.61452109]
[1759428893474,0.82097582,1066.1,1064.1,0.61452109]
[1759428893873,0.82097582,1066.1,1063.9,0.83791874]
[1759428893874,0.82097582,1066.0,1064.0,0.61452109]
[1759428894475,0.82097582,1066.0,1063.8,2.19949274]
[1759428894476,0.82097582,1066.0,1064.1,0.61452109]
[1759428894674,0.82097582,1066.4,1064.2,0.61452109]
[1759428894973,0.82097582,1066.4,1064.3,0.61452109]
[1759428895177,0.82097582,1066.2,1064.4,0.61452109]
[1759428895378,0.82097582,1066.3,1064.7,0.61452109]
[1759428895876,0.82097582,1066.5,1064.6,0.61452109]
[1759428896277,0.82097582,1066.3,1064.7,0.61452109]
[1759428896480,0.82097582,1066.3,1064.8,0.61452109]
[1759428897482,0.82097582,1066.4,1064.8,0.61452109]
[1759428900879,0.82097582,1066.4,1064.7,0.61452109]
[1759428901080,0.82097582,1066.5,1064.7,0.61452109]
[1759428902080,0.82097582,1066.4,1064.7,0.61452109]
[1759428903083,0.82097582,1066.4,1064.8,0.61452109]
[1759428903287,0.82097582,1066.5,1064.8,0.61452109]
[1759428904188,0.82097582,1066.5,1064.9,0.61452109]
[1759428907989,0.82097582,1066.5,1064.7,0.83791874]
[1759428907990,0.82097582,1066.4,1064.8,0.61452109]
[1759428909091,0.82097582,1066.3,1064.8,0.61452109]
[1759428910294,0.82097582,1066.1,1064.8,0.61452109]
[1759428910494,0.82097582,1066.2,1064.8,0.61452109]
[1759428910695,0.82097582,1066.1,1064.8,0.61452109]
[1759428910892,0.82097582,1066.3,1064.7,0.61452109]
[1759428912597,0.82097582,1066.2,1064.7,0.61452109]
[1759428913099,0.82097582,1066.1,1064.7,0.61452109]
[1759428914094,0.82097582,1066.1,1064.6,0.61452109]
[1759428915300,0.82097582,1066.0,1064.6,0.61452109]
[1759428915698,0.82097582,1066.1,1064.6,0.61452109]
[1759428915902,0.82097582,1066.2,1064.6,0.61452109]
[1759428916201,0.82097582,1066.1,1064.6,0.61452109]
[1759428916997,0.82097582,1066.0,1064.7,0.61452109]
[1759428917301,0.82097582,1065.9,1064.7,0.61452109]
[1759428920998,0.82097582,1065.8,1064.5,0.61452109]
[1759428922797,0.82097582,1065.8,1064.4,0.61452109]
[1759428923197,0.82097582,1066.0,1064.4,0.61452109]
[1759428923398,0.82097582,1066.1,1064.3,0.61452109]
[1759428925904,0.82097582,1066.2,1064.3,0.61452109]
[1759428927408,0.82097582,1066.1,1064.2,0.61452109]
[1759428927908,0.82097582,1065.9,1064.3,0.61452109]
[1759428929710,0.82097582,1066.0,1064.2,0.61452109]
[1759428929910,0.82097582,1065.9,1064.2,0.61452109]
[1759428930209,0.82097582,1066.0,1064.2,0.61452109]
[1759428930406,0.82097582,1065.9,1064.2,0.61452109]
[1759428930607,0.82097582,1065.8,1064.1,0.61452109]
[1759428930812,0.82097582,1065.9,1064.1,0.61452109]
[1759428931113,0.82097582,1065.8,1064.1,0.61452109]
[1759428931312,0.82097582,1065.9,1064.1,0.61452109]
[1759428931714,0.82097582,1066.7,1064.3,0.61452109]
[1759428932011,0.82097582,1066.5,1064.5,0.61452109]
[1759428932309,0.82097582,1066.3,1064.8,0.61452109]
[1759428932911,0.82097582,1066.4,1064.9,0.61452109]
[1759428933512,0.82097582,1066.4,1064.7,0.83791874]
[1759428933717,0.82097582,1066.4,1064.9,0.6238253]
[1759428933913,0.82097582,1066.5,1065.0,1.4394705]
[1759428935817,0.82097582,1066.6,1065.0,1.4394705]
[1759428937122,0.82097582,1066.5,1065.0,1.4394705]
[1759428938023,0.16321668,1067.1,1065.0,2.0632958]
[1759428938222,0.16321668,1067.1,1065.0,1.4394705]
[1759428938522,0.9841925,1067.1,1065.0,1.4394705]
[1759428940022,0.82097582,1067.0,1065.0,1.4394705]
[1759428940618,0.82097582,1066.9,1065.0,1.4394705]
[1759428942120,0.82097582,1066.8,1065.0,1.4394705]
[1759428942326,0.82097582,1066.9,1065.0,1.4394705]
[1759428942726,0.82097582,1066.8,1065.0,1.4394705]
[1759428943226,0.82097582,1066.9,1065.0,1.4394705]
[1759428945823,0.82097582,1066.7,1065.0,1.4394705]
[1759428946026,0.16321668,1067.1,1065.0,1.4394705]
[1759428946027,0.82097582,1066.8,1065.0,1.4394705]
[1759428950928,0.82097582,1066.7,1065.0,1.4394705]
[1759428951431,0.82097582,1066.8,1065.0,1.4394705]
[1759428957831,0.82097582,1066.9,1065.0,1.4394705]
[1759428958236,0.82097582,1066.8,1065.0,1.4394705]
[1759428960937,0.82097582,1066.9,1065.0,1.4394705]
[1759428965342,0.82097582,1066.8,1065.0,1.4394705]
[1759428965839,0.82097582,1066.9,1065.0,1.4394705]
[1759428966236,0.82097582,1066.8,1065.0,1.4394705]
[1759428970838,0.82097582,1066.9,1065.0,1.4394705]
[1759428972443,0.82097582,1067.0,1065.0,1.4394705]
[1759428974748,0.82097582,1067.0,1065.1,0.6238253]
[1759428975349,0.82097582,1067.0,1065.2,0.6238253]
[1759428975847,0.9841925,1067.1,1065.2,0.6238253]
[1759428976049,0.82097582,1067.0,1065.2,0.6238253]
[1759428976249,0.82097582,1066.8,1065.1,0.6238253]
[1759428976449,0.82097582,1066.8,1065.0,2.0632958]
[1759428976849,0.82097582,1066.8,1065.0,1.4394705]
[1759428977050,0.82097582,1066.7,1065.0,1.4394705]
[1759428977250,0.82097582,1066.7,1065.0,2.0632958]
[1759428977546,0.82097582,1066.7,1065.0,1.4394705]
[1759428978650,0.82097582,1066.8,1065.0,1.4394705]
[1759428979553,0.82097582,1066.7,1065.0,1.4394705]
[1759428981051,0.82097582,1066.8,1065.0,1.4394705]
[1759428982853,0.82097582,1066.9,1065.0,1.4394705]
[1759428983057,0.82097582,1066.8,1065.0,1.4394705]
[1759428984258,0.82097582,1066.8,1065.0,2.0632958]
[1759428984452,0.82097582,1066.7,1065.0,2.0632958]
[1759428985452,0.82097582,1066.8,1065.0,2.0632958]
[1759428986255,0.82097582,1066.7,1065.0,2.0632958]
[1759428986757,0.82097582,1066.8,1065.0,2.0632958]
[1759428987357,0.82097582,1066.7,1065.1,0.6238253]
[1759428987755,0.82097582,1066.8,1065.0,2.0632958]
[1759428987958,0.82097582,1066.7,1065.1,0.6238253]
[1759428989459,0.82097582,1066.6,1065.1,0.6238253]
[1759428989858,0.82097582,1066.7,1065.1,0.6238253]
[1759428990058,0.82097582,1066.6,1065.1,0.6238253]
[1759428990257,0.82097582,1066.6,1065.2,0.6238253]
[1759428990854,0.82097582,1066.7,1065.2,0.6238253]
[1759428991256,0.82097582,1066.6,1065.3,0.6238253]
[1759428992162,0.82097582,1066.7,1065.2,0.6238253]
[1759428993059,0.82097582,1066.6,1065.2,0.6238253]
[1759428993661,1.26585354,1066.9,1065.2,0.6238253]
[1759428993662,0.82097582,1066.7,1065.2,0.6238253]
[1759428994362,0.82097582,1066.6,1065.1,0.6238253]
[1759428996260,0.82097582,1066.5,1065.1,0.6238253]
[1759428997264,0.82097582,1066.5,1065.2,0.6238253]
[1759428999061,0.82097582,1066.5,1065.1,0.6238253]
[1759428999266,0.82097582,1066.5,1065.2,0.6238253]
[1759429000869,0.82097582,1066.5,1065.3,0.6238253]
[1759429004966,0.82097582,1066.6,1065.3,0.6238253]
[1759429010670,0.82097582,1066.5,1065.3,0.6238253]
[1759429010876,0.82097582,1066.6,1065.3,0.6238253]
[1759429012380,0.82097582,1066.5,1065.3,0.6238253]
[1759429015984,0.82097582,1066.6,1065.3,0.6238253]
[1759429018680,0.82097582,1066.5,1065.3,0.6238253]
[1759429022286,0.82097582,1066.6,1065.3,0.6238253]
[1759429024686,0.82097582,1067.4,1065.3,0.6238253]
[1759429024890,0.1632052,1067.1,1065.3,0.6238253]
[1759429025092,0.1632052,1067.1,1065.2,0.6238253]
[1759429029588,0.1632052,1067.1,1065.3,0.6238253]
[1759429029991,0.82097582,1066.8,1065.5,0.6238253]
[1759429030489,0.82097582,1066.7,1065.5,0.6238253]
[1759429030789,0.82097582,1066.8,1065.4,0.6238253]
[1759429032995,0.82097582,1066.9,1065.4,0.6238253]
[1759429033390,0.82097582,1066.9,1065.1,0.83791874]
[1759429033391,0.82097582,1066.8,1065.3,0.6238253]
[1759429033894,0.82097582,1066.9,1065.3,0.6238253]
[1759429034390,0.82097582,1066.8,1065.3,0.6238253]
[1759429035896,0.82097582,1066.9,1065.3,0.6238253]
[1759429036695,0.82097582,1066.8,1065.3,0.6238253]
[1759429038692,0.82097582,1066.9,1065.1,0.6238253]
[1759429039793,0.82097582,1066.8,1065.1,0.6238253]
[1759429040398,0.82097582,1066.4,1065.2,0.6238253]
[1759429040896,0.82097582,1066.5,1065.2,0.6238253]
[1759429041394,0.82097582,1066.5,1065.1,0.6238253]
[1759429047102,0.82097582,1066.6,1065.1,0.6238253]
[1759429047401,0.82097582,1066.5,1065.1,0.6238253]
[1759429050398,0.82097582,1066.3,1065.0,2.0632958]
[1759429050798,0.82097582,1066.4,1065.0,2.0632958]
[1759429051302,0.82097582,1066.5,1065.0,1.4394705]
[1759429051499,0.82097582,1066.4,1065.0,1.4394705]
[1759429052100,0.82097582,1066.2,1065.0,1.4394705]
[1759429052998,0.82097582,1066.1,1065.0,1.4394705]
[1759429053198,0.82097582,1066.2,1065.0,1.4394705]
[1759429054603,0.82097582,1066.1,1065.0,1.4394705]
[1759429054905,2.27296111,1067.1,1065.0,1.4394705]
[1759429054906,0.82097582,1066.0,1065.0,1.4394705]
[1759429055102,0.82097582,1066.1,1065.0,1.4394705]
[1759429056006,0.82097582,1066.1,1065.1,1.31052318]
[1759429056303,0.82097582,1066.2,1065.1,1.31052318]
[1759429058008,0.82097582,1066.2,1065.2,1.29327417]
[1759429058910,0.82097582,1066.3,1065.2,1.29327417]
[1759429061416,0.82097582,1066.3,1064.5,0.6238253]
[1759429062412,0.82097582,1066.3,1064.6,1.27120556]
[1759429062612,0.82097582,1066.3,1064.6,1.27520556]
[1759429065818,0.82097582,1066.4,1064.6,1.27520556]
[1759429066517,0.82097582,1066.3,1064.6,1.27520556]
[1759429068116,0.82097582,1066.4,1064.6,1.27520556]
[1759429070121,0.82097582,1066.3,1064.6,1.27520556]
[1759429071823,0.82097582,1066.4,1064.6,1.27520556]
[1759429073125,0.82097582,1066.3,1064.6,1.27520556]
[1759429075723,0.82097582,1066.4,1064.6,1.27520556]
[1759429079628,0.82097582,1066.3,1064.6,1.27520556]
[1759429080827,1.26585354,1066.6,1064.6,1.27520556]
[1759429080828,0.82097582,1066.4,1064.6,1.27520556]
[1759429084929,0.82097582,1066.3,1064.6,1.27520556]
[1759429085928,0.82097582,1066.4,1064.6,1.27520556]
[1759429087030,0.82097582,1066.7,1064.6,1.27520556]
[1759429089430,0.82097582,1066.6,1064.6,1.27520556]
[1759429089731,0.82097582,1066.3,1064.6,1.89903086]
[1759429090633,0.82097582,1066.4,1064.6,1.89903086]
[1759429091130,0.1632052,1067.1,1064.6,1.89903086]
[1759429091131,0.82097582,1066.3,1064.6,1.89903086]
[1759429093133,0.82097582,1066.2,1064.6,1.89903086]
[1759429093334,0.82097582,1066.4,1064.6,1.27520556]
[1759429094535,0.82097582,1066.3,1064.6,1.27520556]
[1759429095138,0.82097582,1065.9,1064.6,1.27520556]
[1759429095435,0.82097582,1065.8,1064.6,1.27520556]
[1759429096139,0.82097582,1065.9,1064.6,1.27520556]
[1759429096339,0.82097582,1065.8,1064.6,1.27520556]
[1759429098741,0.82097582,1066.0,1064.6,1.27520556]
[1759429100942,0.82097582,1066.1,1064.6,1.27520556]
[1759429101237,0.82097582,1066.0,1064.6,1.27520556]
[1759429101441,0.82097582,1065.9,1064.6,1.27520556]
[1759429102037,0.82097582,1065.8,1064.6,1.27520556]
[1759429104045,1.26585354,1066.1,1064.6,1.27520556]
[1759429104238,0.82097582,1065.6,1064.6,1.27520556]
[1759429105145,0.82097582,1065.5,1064.6,1.27520556]
[1759429105344,0.82097582,1065.4,1064.6,1.27520556]
[1759429106742,0.82097582,1065.5,1064.6,1.27520556]
[1759429107040,0.82097582,1065.4,1064.6,1.27520556]
[1759429108243,0.82097582,1065.5,1064.6,1.27520556]
[1759429108744,0.82097582,1065.4,1064.6,1.27520556]
[1759429109143,0.82097582,1065.3,1064.6,1.27520556]
[1759429111550,0.82097582,1065.4,1064.6,1.27520556]
[1759429111846,0.82097582,1065.3,1064.6,1.27520556]
[1759429112250,0.82097582,1065.5,1064.6,1.27520556]
[1759429113951,0.82097582,1065.6,1064.6,1.27520556]
[1759429116149,0.82097582,1065.7,1064.6,1.27520556]
[1759429116352,0.82097582,1065.5,1064.6,1.27520556]
[1759429116552,0.82097582,1065.4,1064.6,1.27520556]
[1759429118048,0.82097582,1065.8,1064.6,1.27520556]
[1759429118849,0.82097582,1065.9,1064.6,1.27520556]
[1759429119756,0.82097582,1065.8,1064.6,1.27520556]
[1759429120052,0.82097582,1065.7,1064.6,1.27520556]
[1759429120251,0.82097582,1065.9,1064.6,1.27520556]
[1759429121351,0.82097582,1066.0,1064.6,1.27520556]
[1759429123855,0.82097582,1065.8,1064.6,1.27520556]
[1759429124056,0.82097582,1065.9,1064.6,1.27520556]
[1759429125562,0.82097582,1065.8,1064.6,1.27520556]
[1759429126662,0.82097582,1065.7,1064.6,1.27520556]
[1759429128662,0.82097582,1065.8,1064.6,1.27520556]
[1759429129263,0.82097582,1065.7,1064.6,1.27520556]
[1759429129464,0.82097582,1065.8,1064.6,1.27520556]
[1759429130364,0.82097582,1065.7,1064.6,1.27520556]
[1759429130664,0.82097582,1065.8,1064.6,1.27520556]
[1759429133363,0.82097582,1065.6,1064.6,1.27520556]
[1759429133865,0.82097582,1065.5,1064.6,1.27520556]
[1759429135569,0.82097582,1065.6,1064.6,1.27520556]
[1759429136967,0.82097582,1065.5,1064.6,1.27520556]
[1759429137471,0.82097582,1065.6,1064.6,1.27520556]
[1759429138371,0.82097582,1065.5,1064.6,1.27520556]
[1759429138671,0.82097582,1065.6,1064.6,1.27520556]
[1759429139168,0.82097582,1065.5,1064.6,1.27520556]
[1759429141371,0.82097582,1065.4,1064.6,1.27520556]
[1759429142273,0.82097582,1065.3,1064.6,1.27520556]
[1759429143273,0.82097582,1065.4,1064.6,1.27520556]
[1759429146174,0.82097582,1065.5,1064.6,1.27520556]
[1759429147275,0.82097582,1065.7,1064.6,1.27520556]
[1759429149578,0.82097582,1066.0,1064.6,1.27520556]
[1759429151482,0.82097582,1065.9,1064.6,1.27520556]
[1759429153982,0.82097582,1066.0,1064.6,1.27520556]
[1759429154181,0.82097582,1065.9,1064.6,1.27520556]
[1759429154883,0.82097582,1066.0,1064.6,1.27520556]
[1759429155485,0.82097582,1065.7,1064.6,1.27520556]
[1759429155982,0.82097582,1065.9,1064.6,1.27520556]
[1759429156286,0.82097582,1065.8,1064.6,1.27520556]
[1759429156886,0.82097582,1065.9,1064.6,1.27520556]
[1759429157086,0.82097582,1065.8,1064.6,1.27520556]
[1759429161786,0.82097582,1065.6,1064.6,1.27520556]
[1759429162388,0.82097582,1065.5,1064.6,1.27520556]
[1759429165693,0.82097582,1065.6,1064.6,1.27520556]
[1759429168489,0.82097582,1065.7,1064.6,1.27520556]
[1759429169192,0.82097582,1065.6,1064.6,1.27520556]
[1759429172800,0.82097582,1065.5,1064.6,1.27520556]
[1759429173698,0.82097582,1065.4,1064.6,1.27520556]
[1759429174701,0.82097582,1065.3,1064.6,1.27520556]
[1759429175404,0.82097582,1065.4,1064.6,1.27520556]
[1759429175597,0.82097582,1065.3,1064.6,1.27520556]
[1759429179702,0.82097582,1065.5,1064.6,1.27520556]
[1759429180505,0.82097582,1065.6,1064.6,1.27520556]
[1759429183404,0.82097582,1065.6,1064.7,1.39577399]
[1759429183607,0.82097582,1065.6,1064.7,1.39977399]
[1759429184405,0.82097582,1065.7,1064.7,1.39977399]
[1759429190113,0.82097582,1065.8,1064.7,1.39977399]
[1759429196323,0.82097582,1065.9,1064.7,1.39977399]
[1759429198822,0.82097582,1065.8,1064.7,1.39977399]
[1759429205628,0.82097582,1065.7,1064.7,1.39977399]
[1759429207632,0.82097582,1065.8,1064.7,1.39977399]
[1759429208836,0.82097582,1065.7,1064.7,1.39977399]
[1759429209036,0.82097582,1065.8,1064.7,1.39977399]
[1759429210135,0.82097582,1065.7,1064.7,1.39977399]
[1759429211738,0.82097582,1065.6,1064.7,1.39977399]
[1759429211937,0.82097582,1065.8,1064.7,1.39977399]
[1759429218442,0.82097582,1065.7,1064.7,1.39977399]
[1759429220444,0.82097582,1065.8,1064.7,1.39977399]
[1759429221440,0.82097582,1065.7,1064.7,1.39977399]
[1759429222842,0.82097582,1065.8,1064.7,1.39977399]
[1759429224046,0.82097582,1065.7,1064.7,1.39977399]
[1759429224240,0.82097582,1065.8,1064.7,1.39977399]
[1759429228148,0.82097582,1065.7,1064.7,1.39977399]
[1759429232145,0.82097582,1065.6,1064.7,1.39977399]
[1759429232545,0.82097582,1065.7,1064.7,1.39977399]
[1759429233244,0.82097582,1065.6,1064.7,1.39977399]
[1759429233845,0.82097582,1065.7,1064.7,1.39977399]
[1759429234251,0.82097582,1065.6,1064.7,1.39977399]
[1759429234546,0.82097582,1065.7,1064.7,1.39977399]
[1759429236245,0.82097582,1065.6,1064.7,1.39977399]
[1759429237552,0.82097582,1065.5,1064.7,1.39977399]
[1759429237752,0.82097582,1065.4,1064.7,1.39977399]
[1759429242153,0.82097582,1065.5,1064.7,1.39977399]
[1759429244750,0.82097582,1065.4,1064.7,1.39977399]
[1759429245256,0.82097582,1065.5,1064.7,1.39977399]
[1759429245651,0.82097582,1065.4,1064.7,1.39977399]
[1759429247159,0.82097582,1065.3,1064.7,1.39977399]
[1759429247357,0.82097582,1065.4,1064.7,1.39977399]
[1759429249260,0.82097582,1065.3,1064.7,1.39977399]
[1759429250865,0.82097582,1065.5,1064.7,1.39977399]
[1759429251060,0.82097582,1065.4,1064.7,1.39977399]
[1759429251265,0.82097582,1065.5,1064.7,1.39977399]
[1759429251660,0.82097582,1065.4,1064.7,1.39977399]
[1759429254761,0.82097582,1065.2,1064.7,1.39977399]
[1759429257362,0.82097582,1065.4,1064.7,1.39977399]
[1759429258668,0.82097582,1065.5,1064.7,1.39977399]
[1759429262868,0.82097582,1065.3,1064.7,1.39977399]
[1759429267373,0.82097582,1065.4,1064.7,1.39977399]
[1759429267571,0.82097582,1065.3,1064.7,1.39977399]
[1759429268168,0.82097582,1065.4,1064.7,1.39977399]
[1759429268374,0.82097582,1065.3,1064.7,1.39977399]
[1759429269070,0.82097582,1065.2,1064.7,1.39977399]
[1759429269473,0.82097582,1065.1,1064.7,1.39977399]
[1759429270374,0.82097582,1065.2,1064.7,1.39977399]
[1759429270576,0.82097582,1065.1,1064.7,1.39977399]
[1759429271178,0.82097582,1065.3,1064.7,1.39977399]
[1759429271378,0.82097582,1065.9,1064.7,1.39977399]
[1759429271578,0.82097582,1065.6,1064.7,1.39977399]
[1759429271880,0.82097582,1065.8,1064.7,1.39977399]
[1759429272575,0.82097582,1066.0,1064.7,1.39977399]
[1759429275378,0.82097582,1065.9,1064.7,1.39977399]
[1759429277179,0.82097582,1066.0,1064.7,1.39977399]
[1759429277585,0.82097582,1065.8,1064.7,1.39977399]
[1759429279386,0.82097582,1065.9,1064.7,1.39977399]
[1759429279882,0.82097582,1066.0,1064.7,1.39977399]
[1759429282489,0.82097582,1066.1,1064.7,1.39977399]
[1759429284588,0.82097582,1066.2,1064.7,1.39977399]
[1759429284785,0.82097582,1066.1,1064.7,1.39977399]
[1759429285788,0.82097582,1066.0,1064.7,1.39977399]
[1759429286688,0.82097582,1066.1,1064.7,1.39977399]
[1759429286889,0.82097582,1066.0,1064.7,1.39977399]
[1759429287790,0.82097582,1065.9,1064.7,1.39977399]
[1759429287990,0.82097582,1065.8,1064.7,1.39977399]
[1759429288490,0.82097582,1065.7,1064.7,1.39977399]
[1759429289393,0.82097582,1065.8,1064.7,1.39977399]
[1759429289588,0.82097582,1065.7,1064.7,1.39977399]
[1759429289989,0.82097582,1065.6,1064.7,1.39977399]
[1759429290892,0.82097582,1065.4,1064.7,1.39977399]
[1759429291593,0.82097582,1065.5,1064.7,1.39977399]
[1759429294193,0.82097582,1065.8,1064.7,1.39977399]
[1759429294395,0.16332162,1066.3,1064.7,1.39977399]
[1759429294396,0.82097582,1065.3,1064.7,1.39977399]
[1759429294892,0.82097582,1065.2,1064.7,1.39977399]
[1759429295097,0.82097582,1065.3,1064.7,1.39977399]
[1759429295293,0.16332162,1066.3,1064.7,1.39977399]
[1759429295294,0.82097582,1065.2,1064.7,1.39977399]
[1759429297901,0.82097582,1065.3,1064.7,1.39977399]
[1759429298705,0.98429744,1066.3,1064.7,1.39977399]
[1759429299205,0.82097582,1066.2,1064.7,1.39977399]
[1759429301806,0.82097582,1066.1,1064.7,1.39977399]
[1759429302812,0.82097582,1065.9,1064.7,1.39977399]
[1759429303306,0.82097582,1065.8,1064.7,1.39977399]
[1759429305710,0.82097582,1065.6,1064.7,1.39977399]
[1759429305910,0.82097582,1065.6,1064.8,1.55144902]
[1759429306214,0.82097582,1065.6,1064.8,1.55544902]
[1759429307810,0.82097582,1065.7,1064.8,1.55544902]
[1759429309215,0.82097582,1065.8,1064.8,1.55544902]
[1759429314419,0.82097582,1065.7,1064.8,1.55544902]
[1759429314619,0.82097582,1065.6,1064.8,1.55544902]
[1759429314819,0.82097582,1065.5,1064.8,1.55544902]
[1759429315522,0.82097582,1065.3,1064.8,1.55544902]
[1759429315721,0.82097582,1065.4,1064.8,1.55544902]
[1759429315920,0.82097582,1065.5,1064.8,1.55544902]
[1759429319421,0.82097582,1065.4,1064.8,1.55544902]
[1759429319918,0.82097582,1065.7,1064.8,1.55544902]
[1759429321818,0.82097582,1065.8,1064.8,1.55544902]
[1759429322020,0.82097582,1065.9,1064.8,1.55544902]
[1759429322219,0.82097582,1065.8,1064.8,1.55544902]
[1759429322824,0.82097582,1065.9,1064.8,1.55544902]
[1759429325627,0.82097582,1065.8,1064.8,1.55544902]
[1759429328030,0.82097582,1066.1,1064.8,1.55544902]
[1759429331037,0.98429744,1066.3,1064.8,1.55544902]
[1759429333034,0.82097582,1066.2,1064.8,1.55544902]
[1759429333436,0.82097582,1066.0,1064.8,1.55544902]
[1759429333636,0.82097582,1066.1,1064.8,1.55544902]
[1759429334239,0.82097582,1066.0,1064.8,1.55544902]
[1759429335240,0.82097582,1066.1,1064.8,1.55544902]
[1759429337143,0.82097582,1066.0,1064.8,1.55544902]
[1759429337346,0.82097582,1065.9,1064.8,1.55544902]
[1759429337846,0.82097582,1066.0,1064.8,1.55544902]
[1759429338242,0.82097582,1065.9,1064.8,1.55544902]
[1759429338445,0.82097582,1065.8,1064.8,1.55544902]
[1759429338643,0.82097582,1065.9,1064.8,1.55544902]
[1759429341450,0.82097582,1065.8,1064.8,1.55544902]
[1759429341647,0.82097582,1066.1,1064.8,1.55544902]
[1759429345652,0.82097582,1066.2,1064.8,1.55544902]
[1759429346550,0.82097582,1066.0,1064.8,1.55544902]
[1759429347249,0.82097582,1065.9,1064.8,1.55544902]
[1759429347454,0.82097582,1066.1,1064.8,1.55544902]
[1759429347850,0.98429744,1066.3,1064.8,1.55544902]
[1759429351957,0.82097582,1066.2,1064.8,1.55544902]
[1759429352252,0.82097582,1066.1,1064.8,1.55544902]
[1759429352858,0.82097582,1066.0,1064.8,1.55544902]
[1759429353452,0.82097582,1066.1,1064.8,1.55544902]
[1759429354151,0.98429744,1066.3,1064.8,1.55544902]
[1759429357258,0.82097582,1066.2,1064.8,1.55544902]
[1759429357853,0.98429744,1066.3,1064.8,1.55544902]
[1759429359360,0.82097582,1066.3,1064.8,1.55544902]
[1759429359655,0.82097582,1066.4,1064.8,1.55544902]
[1759429361261,0.82097582,1066.5,1064.8,1.55544902]
[1759429361756,0.9842507,1066.6,1064.8,1.55544902]
[1759429362161,0.82097582,1066.5,1064.8,1.55544902]
[1759429362657,0.9842507,1066.6,1064.8,1.55544902]
[1759429363058,0.82097582,1066.5,1064.8,1.55544902]
[1759429365162,0.9842507,1066.6,1064.8,1.55544902]
[1759429365663,0.16327488,1066.6,1064.8,1.55544902]
[1759429369865,0.9842507,1066.6,1064.8,1.55544902]
[1759429370566,0.16327488,1066.6,1064.8,1.55544902]
[1759429372668,0.82097582,1067.1,1065.2,0.62384992]
[1759429372865,0.98418791,1067.2,1065.1,0.62384992]
[1759429374265,0.98418791,1067.2,1065.0,0.62384992]
[1759429379773,0.82097582,1067.1,1065.0,0.62384992]
[1759429381071,0.82097582,1067.0,1064.9,0.62384992]
[1759429382676,0.82097582,1067.0,1065.0,0.62384992]
[1759429382876,0.82097582,1067.1,1065.0,0.62384992]
[1759429384572,0.16321209,1067.2,1064.9,0.62384992]
[1759429385479,0.98418791,1067.2,1064.8,1.55544902]
[1759429386179,0.82097582,1066.8,1064.9,0.62384992]
[1759429386380,0.82097582,1066.7,1064.8,2.17929894]
[1759429387381,0.82097582,1066.7,1064.8,1.55544902]
[1759429387783,0.82097582,1066.6,1064.8,1.55544902]
[1759429388383,0.82097582,1066.5,1064.8,1.55544902]
[1759429392882,0.82097582,1066.6,1064.8,1.55544902]
[1759429397288,0.82097582,1066.5,1064.8,1.55544902]
[1759429397589,0.82097582,1066.4,1064.8,1.55544902]
[1759429401294,0.82097582,1066.3,1064.8,1.55544902]
[1759429405196,0.82097582,1066.2,1064.8,1.55544902]
[1759429405694,0.82097582,1066.3,1064.8,1.55544902]
[1759429406293,0.82097582,1066.2,1064.8,1.55544902]
[1759429407898,0.82097582,1066.3,1064.8,1.55544902]
[1759429411199,0.82097582,1066.4,1064.8,1.55544902]
[1759429412800,0.82097582,1066.5,1064.8,1.55544902]
[1759429413503,0.82097582,1066.2,1064.8,1.55544902]
[1759429414305,0.82097582,1066.3,1064.8,1.55544902]
[1759429423307,0.82097582,1066.5,1064.8,1.55544902]
[1759429423607,0.82097582,1066.4,1064.8,1.55544902]
[1759429425813,0.82097582,1066.5,1064.8,1.55544902]
[1759429428512,0.82097582,1066.5,1064.9,1.72950376]
[1759429428718,0.82097582,1066.3,1064.9,1.73350376]
[1759429433216,0.16321209,1067.2,1064.9,1.73350376]
[1759429433217,0.82097582,1066.2,1064.9,1.73350376]
[1759429433921,0.82097582,1066.3,1064.9,1.73350376]
[1759429436623,0.82097582,1066.3,1064.4,0.61943561]
[1759429438125,0.82097582,1066.3,1064.5,1.80794827]
[1759429438425,0.82097582,1066.3,1064.5,1.81194827]
[1759429440122,0.82097582,1066.3,1064.6,1.77237907]
[1759429440425,0.82097582,1066.3,1064.6,0.004]
[1759429441425,0.82097582,1066.2,1064.6,0.004]
[1759429443732,0.82097582,1066.1,1064.6,0.004]
[1759429444135,0.82097582,1066.1,1064.6,0.62343561]
[1759429444338,0.82097582,1066.0,1064.6,0.62343561]
[1759429444632,0.82097582,1066.1,1064.6,0.62343561]
[1759429445536,0.82097582,1066.0,1064.6,0.62343561]
[1759429446137,0.82097582,1066.0,1064.6,0.62845733]
[1759429446338,0.82097582,1066.0,1064.7,0.62445733]
[1759429446532,0.82097582,1066.0,1064.8,1.7760228]
[1759429456949,0.82097582,1066.2,1064.8,2.40048013]
[1759429457547,0.82097582,1066.3,1064.9,0.62445733]
[1759429458148,0.82097582,1066.3,1065.0,0.62445733]
[1759429458450,0.82097582,1066.1,1065.2,0.62445733]
[1759429458644,0.82097582,1066.3,1065.2,0.62445733]
[1759429458845,0.82097582,1066.6,1065.4,0.62445733]
[1759429459350,0.82097582,1066.7,1065.3,0.62445733]
[1759429459750,0.82097582,1066.7,1065.5,0.62445733]
[1759429460148,0.82097582,1066.8,1065.4,0.62445733]
[1759429460749,0.82097582,1066.8,1065.5,0.62445733]
[1759429461251,0.82097582,1066.9,1065.4,0.62445733]
[1759429461948,0.82097582,1066.9,1065.2,0.83791874]
[1759429462153,0.82097582,1066.9,1065.4,0.62214985]
[1759429462355,0.82097582,1066.9,1065.5,1.7461602]
[1759429463354,0.82097582,1067.0,1065.5,1.7461602]
[1759429464450,0.82097582,1067.1,1065.5,1.7461602]
[1759429465354,0.82097582,1067.2,1065.5,1.7461602]
[1759429466354,0.98414582,1067.3,1065.5,1.7461602]
[1759429469263,0.16317,1067.3,1065.5,1.7461602]
[1759429471664,0.82097582,1067.5,1065.5,1.7461602]
[1759429471960,0.98409993,1067.6,1065.5,1.7461602]
[1759429473265,0.82097582,1067.7,1065.5,1.7461602]
[1759429473465,0.98406897,1068.0,1065.5,2.36831005]
[1759429473664,0.98406897,1068.0,1065.6,0.62214985]
[1759429473863,0.16309315,1068.0,1065.7,0.62214985]
[1759429474270,0.16309315,1068.0,1065.6,0.62214985]